Cogmind - Beta 16.1 @@@ ROGUE MODE // 2026.04.13 @ 16:42:46 Player: Krysmphoenix Result: Destroyed by G-34 Mercenary with Small Laser Performance ------------- Evolutions (0) 0 Regions Visited (1) 200 Robots Destroyed (12) 60 Value Destroyed (286) 286 Prototype IDs (0) 0 Alien Tech Used (0) 0 Bonus (0) 0 TOTAL SCORE: 546 Bonus ------- None Cogmind --------- Core Integrity 0/250 Matter 270/300 Energy 235/250 System Corruption 0% Temperature Warm (124) Movement Rolling (90) Location -10/Materials Parts ------- > --- POWER (1) -------- Ion Engine > --- PROPULSION (2) --- Wheel Compact Wheel > --- UTILITY (2) ------ Improved Targeting Computer > --- WEAPON (2) ------- Particle Cannon Datajack > --- INVENTORY (5) ---- Compact Wheel Improved Targeting Computer Improved Targeting Computer ECM Suite Peak State ------------ > --- POWER ------------ Ion Engine > --- PROPULSION ------- Wheel Compact Wheel > --- UTILITY ---------- Improved Terrain Scanner Tractor Beam > --- WEAPON ----------- Medium Laser Assault Rifle > --- INVENTORY -------- Compact Wheel [Rating: 9] Favorites ----------- Power Ion Engine Engine Ion Engine Propulsion Compact Wheel Wheel Compact Wheel Utility Structural Scanner Device Structural Scanner Processor Improved Targeting Computer Weapon Datajack Energy Gun Medium Laser Energy Cannon Particle Cannon Ballistic Gun Assault Rifle Special Melee Weapon Datajack Build | -11 -10 ------- Run | Yrd Mat Slots Evolved . | . . Power . | . . Propulsion . | . . Utility . | . . Weapon . | . . Parts Attached 17 | 7 10 Power 1 | 1 . Engine 1 | 1 . Core . | . . Reactor . | . . Propulsion 6 | 2 4 Treads . | . . Leg . | . . Wheel 6 | 2 4 Hover . | . . Flight . | . . Utility 5 | 2 3 Device 4 | 2 2 Storage . | . . Processor 1 | . 1 Hackware . | . . Protection . | . . Artifact . | . . Weapon 5 | 2 3 Energy Gun 2 | 1 1 Energy Cannon 1 | . 1 Ballistic Gun 1 | 1 . Ballistic Cannon . | . . Launcher . | . . Special Weapon . | . . Impact Weapon . | . . Slashing Weapon . | . . Piercing Weapon . | . . Special Melee Weapon 1 | . 1 Unidentified Prototypes . | . . Parts Lost 2 | . 2 Power . | . . Propulsion 1 | . 1 Utility 1 | . 1 Weapon . | . . Highest Loss Streak 1 | . 1 To Critical Strikes . | . . Average Backups 3 | 1 3 Power . | . . Propulsion . | . . Utility 1 | . 2 Weapon . | . . Tool/Special . | . . Unused Backups 5 | 1 4 Power . | . . Propulsion . | . . Utility 3 | . 3 Weapon 2 | 1 1 Tool/Special . | . . Average Slot Usage (%) 97 | . 97 Engine 14 | . 14 Wheel 27 | . 27 Device 19 | . 19 Processor 6 | . 6 Energy Gun 9 | . 9 Energy Cannon 6 | . 6 Ballistic Gun 1 | . 1 Special Melee Weapon 10 | . 10 Peak Build Rating 9 | 9 9 Average Rating 7 | 4 8 On Entrance 4 | . 9 Avg Prop Armor Cover (%) . | . . Naked Turns . | . . Heaviest Build 11 | 11 11 Greatest Support 32 | 26 32 Greatest Overweight (x) . | . . Average Overweight (x) . | . . Largest Inventory Capacity 5 | 5 5 Average Capacity 5 | 5 5 Most Carried 5 | 3 5 Average Carried 3 | . 3 Final Capacity 5 | 5 5 Final Carried 4 | 1 4 Class Distribution -------------------- 100% | Mutant Dominant Class ---------------- Mutant | -10/Materials Resources | -11 -10 ----------- Run | Yrd Mat Matter Collected 402 | 297 105 Remotely 142 | 142 . Salvage Created 501 | 112 389 Parts 22 | 8 14 Haulers Intercepted . | . . Recyclers Shooed 2 | 1 1 Parts Field Recycled . | . . Retrieved Matter . | . . Parts Self-Destructed . | . . Prevented . | . . Parts Restored . | . . Kills | -11 -10 ------- Run | Yrd Mat Combat Hostiles Destroyed 6 | . 6 Guns 5 | . 5 Classes Destroyed 5 | 2 3 Worker 1 | . 1 Tunneler 2 | 2 . Recycler 2 | 1 1 Watcher 1 | . 1 Grunt 6 | . 6 Best Kill Streak 3 | 2 3 Combat Bots Only 2 | . 2 Max Kills in Single Turn 1 | 1 1 Gunslinging . | . . Exploded . | . . Melee . | . . Uniques/NPCs Destroyed . | . . Combat | -11 -10 -------- Run | Yrd Mat Hostile Shots Fired 42 | . 42 Missed 7 | . 7 Hits 35 | . 35 Projectile 35 | . 35 Critical Strikes 1 | . 1 Damage Taken 509 | . 509 Core 254 | . 254 Absorbed by Shields . | . . Core Remaining (%) 100 | 100 . Volleys Fired 50 | 9 41 Largest 2 | 2 2 Hottest 90 | 70 90 Shots Fired 69 | 18 51 Gun 64 | 18 46 Cannon 5 | . 5 Launcher . | . . Special . | . . Kinetic 9 | 9 . Thermal 60 | 9 51 Explosive . | . . Electromagnetic . | . . Robot Hit Streak 10 | 9 10 Robot Miss Streak 2 | 1 2 Penetration Max . | . . Secondary Targets 1 | . 1 Max Gunslinging Chain 1 | . 1 Shots Hit Robots 55 | 15 40 Core Hits 21 | 4 17 Critical Kills . | . . Critical Parts Destroyed . | . . Critical Strikes 5 | 2 3 Burn 5 | 2 3 Melee Attacks 4 | . 4 Impact . | . . Slashing . | . . Piercing . | . . Sneak Attacks 3 | . 3 Combat Hostiles . | . . Follow-up Attacks . | . . Damage Inflicted 706 | 191 515 Guns 622 | 191 431 Cannons 84 | . 84 Explosions . | . . Melee . | . . Ramming . | . . Kinetic 92 | 92 . Thermal 614 | 99 515 Explosive . | . . Electromagnetic . | . . Impact . | . . Slashing . | . . Piercing . | . . Highest Corruption . | . . Average Corruption . | . . Corruption Purged . | . . Corruption Blocked . | . . Overload Shots . | . . Overflow Damage . | . . Projectiles . | . . Explosions . | . . Melee . | . . Knockbacks . | . . Impact . | . . Kinetic . | . . Secondary . | . . Self-Inflicted Damage . | . . Shots . | . . Rammed . | . . Targets Rammed . | . . Kicked . | . . Crushed . | . . Highest Temperature 360 | 45 360 Average Temperature 101 | 21 128 Received Heat Transfer 282 | . 282 Effects 1 | . 1 Shutdowns 1 | . 1 Siege Activations . | . . Martial Activations . | . . Shielding Activations . | . . Robots Disrupted . | . . Combat Hostiles . | . . Robots Corrupted . | . . Combat Hostiles . | . . Parts Fried . | . . Impact Corruptions . | . . Robots Melted 1 | . 1 Combat Hostiles 1 | . 1 Parts Melted 7 | 1 6 Heat Transferred 2061 | 444 1617 Parts Sabotaged . | . . Parts Stolen . | . . Parts Stripped . | . . Power Chain Reactions . | . . Alert | -11 -10 ------- Run | Yrd Mat Maximum Alert Level . | . . Low Security (%) 100 | 100 100 Level 1 . | . . Level 2 . | . . Level 3 . | . . Level 4 . | . . Level 5 . | . . High Security . | . . Max Security . | . . Peak Influence 60 | 10 60 Initial . | . . Average 11 | 2 12 Influence Increases 198 | 15 183 Destroy 0b10 Robot/C 120 | . 120 Destroy 0b10 Robot/NC 30 | 15 15 Destroy Leader 32 | . 32 Successful Hack 16 | . 16 Influence Decreases 196 | 15 181 Time Decay 176 | 15 161 Lost Part 20 | . 20 Squads Dispatched 1 | . 1 Investigation 1 | . 1 Extermination . | . . Reinforcement . | . . Assault . | . . Garrison . | . . Intercept . | . . Searches Triggered . | . . Construction Impeded . | . . Haulers Reinforced . | . . Active Scanning Responses . | . . Cargo Convoy Interrupts . | . . Stealth | -11 -10 --------- Run | Yrd Mat Distress Signals . | . . Communications Jammed . | . . Distress Signals . | . . Times Spotted 12 | . 12 Peak Tracking Total 3 | . 3 Tactical Retreats . | . . Traps | -11 -10 ------- Run | Yrd Mat Traps Triggered 2 | . 2 Indirectly . | . . Trap Hack Attempts . | . . Triggered . | . . Disarmed . | . . Reprogrammed . | . . Reused . | . . Traps Extracted . | . . Installed . | . . Triggered . | . . Machines | -11 -10 ---------- Run | Yrd Mat Machines Disabled . | . . Max in Single Turn . | . . Machines Repaired . | . . Machines Dismantled . | . . Machines Sabotaged . | . . Overloaded Fab Kills . | . . Hacking | -11 -10 --------- Run | Yrd Mat Machines Accessed 6 | . 6 Terminals 4 | . 4 Fabricators . | . . Repair Stations 1 | . 1 Recycling Units 1 | . 1 Scanalyzers . | . . Garrison Access . | . . Total Hacks 22 | . 22 Successful 11 | . 11 Failed 11 | . 11 Catastrophic 1 | . 1 Database Lockouts . | . . Manual 14 | . 14 Terminals 14 | . 14 Fabricators . | . . Repair Stations 5 | . 5 Recycling Units 3 | . 3 Scanalyzers . | . . Garrison Access . | . . Terminal Hacks . | . . Fabricator Hacks . | . . Repair Station Hacks 3 | . 3 Scan Component 2 | . 2 Repair 1 | . 1 Recycling Unit Hacks 1 | . 1 Report Inventory 1 | . 1 Scanalyzer . | . . Garrison Access Hacks . | . . Unauthorized Hacks 7 | . 7 Terminals 7 | . 7 Assimilate 3 | . 3 Botnet 4 | . 4 Fabricators . | . . Repair Stations . | . . Recycling Units . | . . Scanalyzers . | . . Garrison Access . | . . Data Cores Recovered . | . . Used . | . . Hacking Detections 6 | . 6 Full Trace Events 1 | . 1 Feedback Events . | . . Feedback Blocked . | . . Robot Schematics Acquired . | . . Robots Built . | . . Authchips . | . . Time . | . . Total Robot Build Rating . | . . Part Schematics Acquired . | . . Parts Built . | . . Authchips . | . . Time . | . . Total Part Build Rating . | . . Part Studies Acquired . | . . Parts Repaired . | . . Time 26 | . 26 Parts Recycled . | . . Recycled Matter . | . . Retrieved Matter . | . . Retrieved Components . | . . Parts Scanalyzed . | . . Part Schematics Acquired . | . . Parts Damaged . | . . Bothacking | -11 -10 ------------ Run | Yrd Mat Used RIF Installer . | . . Robots Hacked 4 | . 4 Non-combat 4 | . 4 Combat . | . . Robot Hacks Applied 4 | . 4 parse_system 1 | . 1 no_distress 2 | . 2 find_station 1 | . 1 Relay Couplers Released . | . . Fabnet Peak Effective % . | . . Robots Rewired . | . . Allies Hacked . | . . Hacks Repelled . | . . Allies | -11 -10 -------- Run | Yrd Mat Total Allies . | . . Largest Group . | . . Highest-Rated Group . | . . Highest-Rated Ally . | . . Total Orders . | . . Ally Attacks . | . . Total Damage . | . . Kills . | . . Allies Corrupted . | . . Allies Melted . | . . Intel | -11 -10 ------- Run | Yrd Mat Active Infowar (turns) 621 | 5 616 Terrain 131 | 5 126 Structural 607 | . 607 Robot Analysis Total . | . . Derelict Logs Recovered . | . . Drone Launches . | . . Drone Recoveries . | . . Exploration | -11 -10 ------------- Run | Yrd Mat Turns Passed 722 | 84 638 Spaces Moved 495 | 51 444 Core 11 | 11 . Treads . | . . Legs . | . . Wheels 484 | 40 444 Hover . | . . Flight . | . . Fastest Speed 50 | 50 90 Average Speed 92 | 79 94 Slowest Speed 100 | 90 100 Overloaded Moves . | . . Propulsion Burnouts . | . . Robots Hopped . | . . Potential Cave-ins . | . . Cave-ins Triggered . | . . Exploration Rate (%) 31 | 3 60 Regions Visited 1 Branch Regions . Pre-discovered Areas . | . . Known Exits Taken . | . . Unknown Exits Taken 1 | 1 . Scrap Searched . | . . Spaces Dug . | . . Terrain Destroyed . | . . Melee . | . . Projectile . | . . AOE . | . . Terrain Rammed . | . . Walls Destroyed . | . . Machines Disabled . | . . Actions | -11 -10 --------- Run | Yrd Mat Total 688 | 76 612 Wait 85 | . 85 Move 494 | 50 444 Hop . | . . Pick Up 25 | 9 16 Fast Attach . | . . Attach 12 | 7 5 Detach . | . . Swap 9 | . 9 Drop 9 | 1 8 Fire 50 | 9 41 Melee 4 | . 4 Ram . | . . Kick . | . . Crush . | . . Escape Stasis . | . . Rewire . | . . Trap . | . . Miscellaneous . | . . Route ------- -11/Scrapyard -10/Materials (discovered 4 exits: [*Mat x2] / [*Min x2]) History --------- Turn | Location | Event 7 | -11/Scrapyard | Discovered new exit (range 14) 85 | -11/Scrapyard | Entered Materials 285 | -10/Materials | Core integrity fell below 50% 318 | -10/Materials | Build established: Mutant 370 | -10/Materials | Core integrity fell below 20% 466 | -10/Materials | Discovered new exit (range 16) 498 | -10/Materials | Discovered new exit (range 16) 555 | -10/Materials | Discovered new exit (range 15) 656 | -10/Materials | Discovered new exit (range 8) 723 | -10/Materials | Destroyed by G-34 Mercenary with Small Laser Last Messages --------------- 00670_ K-01 Serf cleans the Repair Station. 00678_ Connecting with Repair Station... >>Scan(Structural Scanner) Scanning Structural Scanner... Ready to Repair: Structural Scanner Rating: 1 Time: 26 00707_ Connecting with Repair Station... >>Scan(Structural Scanner) Scanning Structural Scanner... Ready to Repair: Structural Scanner Rating: 1 Time: 26 >>Repair Repairing Structural Scanner... ETC: 26 00707_ ALERT: Suspicious activity at Repair Station M001. Dispatching Investigation squad. Map ----- +----------------------------------------------------+ | #### ######## ]]##?????### ###??????? | | #### # T # ]##??????## ???????? | | ??## # ! # ##??????## ????????? | | ??## # """ +% !##??????## ???????? | | ??## # """%#% ! ! ||##??????#####???????? | | ??## # """ # !=! ||##??????#####???????? | | ??## # # !=! ######??????????????????? | | ??## ############## ######################??? | | ??## ############## ######################??? | | ??## ##?????????##T ##??? | | ??## ##?????????### ##??? | | ??## ##?????????### ##??? | | #### ##??????????####################### ##??? | | #### ##?????????? ################# ##??? | | # # ###?????????????????????########### ## | | # # ###?????????????????????## #### ####+ | | # ##?????????????????????## ^ | | ## # ##?????????????????????## T #### | | ####^ ##?????????????????????## ^! #### | | ### ## ??????????############ #########??? | | ## # ??????????############# ##########??? | | ## # ?????????? + # ###?????????? | | ## < # ????????????## """m # ##??????????? | | ## # ????????????## "R" + ##??????????? | | ##"" ""# ????????????## " " # ##??????????? | | ###"!!!"## ????????????##@ g # < ##??????????? | | ####"""### ????????????## """ # ##??????????? | | ?#########?????????????## """ ######??????????? | | ??######???????????????## """ ######??????????? | | ???????????????????????## ] ##??????????????? | | ???????????????????????############??????????????? | | ???????????????????????############??????????????? | | ?????????????????????????????????????????????????? | | ?????????????????????????????????????????????????? | | ?????????????????????????????????????????????????? | | ?????????????????????????????????????????????????? | | ?????????????????????????????????????????????????? | | ?????????????????????????????????????????????????? | | | | | | | | | | | | | | | | | | | | | | | | | +----------------------------------------------------+ Best States ------------- Heat Dissipation 35 Energy Generation 10 Energy Capacity 250 Matter Stores 300 Matter Capacity 300 Sight Range 16 Terrain Scan Range 16 Terrain Scan Density 10 Evasion (%) 50 Targeting Accuracy 6 Item Schematics ----------------- None Robot Schematics ------------------ None Fabricated ------------ Nothing Repaired ---------- Nothing Studied --------- None Alien Tech Used ----------------- None Achievements -------------- None Challenges ------------ None Game ------ Seed WeldingCannonFilter Manual? 0 Play Time 00:11:38 Cumulative 19.3 hours Start 2026.04.13 @ 16:21:20 End 2026.04.13 @ 16:42:46 Sessions 1 Manual Loads 0 Difficulty Rogue Special Mode None Game No. 33 Rogue 30 Adventurer 3 Explorer 0 Win Type - Total 1 Types 1/0/0/0/0/0/0/0/0/0 Lore% 22 Gallery% 19 Achievement% 21 Wizard Run 0 Options --------- Layout 1 ASCII 0 Keyboard 0 Movement Numpad Keybinds 0 Fullscreen 2 Font 24/Proggy Map View 50x35 Zoom Use 0% Tactical HUD 1 Map Filters NONE Filters NONE Steam 1 RUN: d8ad620f-a7c1-4d53-a5a9-95dfdd500107